Cogmind - Beta 9.5 @@@ ROGUE MODE // 2020.04.10 @ 19:37:03 Player: Gobbopathe Result: Destroyed by G-47 Trooper with Particle Gun Performance ------------- Evolutions (2) 1000 Regions Visited (8) 1600 Robots Destroyed (52) 260 Value Destroyed (1151) 1151 Prototype IDs (9) 180 Alien Tech Used (0) 0 Bonus (804) 804 TOTAL SCORE: 4995 Bonus ------- Pacifist 200 High Alert Combat Kills 22 Follower Combat Kills 458 Aligned with FarCom 300 Friendly Fire -176 Cogmind --------- Core Integrity 0/550 Matter 290/300 Energy 100/100 System Corruption 0% Temperature Cool (9) Movement Core (150) Ox2 Location -8/Storage Parts ------- > --- POWER (1) -------- (None) > --- PROPULSION (2) --- (None) > --- UTILITY (6) ------ Medium Storage Unit Advanced Targeting Computer > --- WEAPON (2) ------- (None) > --- INVENTORY (8) ---- Cooled Ion Engine Cooling System Heavy EM Pulse Gun Firepult Rocket Launcher Peak State ------------ > --- POWER ------------ Cooled Ion Engine > --- PROPULSION ------- Wheel Armored Wheel > --- UTILITY ---------- Cryofiber Web Improved Heat Sink Advanced Heat Sink Medium Storage Unit Advanced Targeting Computer Medium Armor Plating > --- WEAPON ----------- Firepult > --- INVENTORY -------- Cooled Ion Engine Hacking Suite System Shield Improved Trap Extractor Improved Medium Laser Improved Light Cannon Advanced EMP Blaster Rocket Launcher [Rating: 45] Favorites ----------- Power Ion Engine Engine Ion Engine Propulsion Wheel Treads Light Treads Leg Aluminum Leg Wheel Wheel Utility Improved Heat Sink Device Improved Heat Sink Storage Medium Storage Unit Processor Advanced Targeting Computer Hackware Hacking Suite Protection Light Armor Plating Weapon Firepult Energy Gun Advanced Beam Rifle Energy Cannon Firepult Ballistic Gun Enhanced Autogun Ballistic Cannon Improved Light Cannon Launcher Advanced EMP Blaster Build | -11 -10 -10 -9 -9 -9 -8 -8 -8 ------- Run | Scr Mat Min Mat Min Exi Min Mat Sto Slots Evolved 4 | . . . 2 . . . 2 . Power . | . . . . . . . . . Propulsion . | . . . . . . . . . Utility 4 | . . . 2 . . . 2 . Weapon . | . . . . . . . . . Parts Attached 68 | 6 1 3 13 5 5 1 3 31 Power 8 | 1 . . 2 . . . 1 4 Engine 8 | 1 . . 2 . . . 1 4 Core . | . . . . . . . . . Reactor . | . . . . . . . . . Propulsion 14 | 2 . . 4 . 1 1 . 6 Treads 2 | . . . . . . . . 2 Leg 2 | . . . 1 . . . . 1 Wheel 10 | 2 . . 3 . 1 1 . 3 Hover . | . . . . . . . . . Flight . | . . . . . . . . . Utility 23 | 1 1 2 4 2 3 . 2 8 Device 12 | . . 2 2 1 3 . 1 3 Storage 3 | 1 1 . . 1 . . . . Processor 1 | . . . 1 . . . . . Hackware 1 | . . . 1 . . . . . Protection 6 | . . . . . . . 1 5 Artifact . | . . . . . . . . . Weapon 23 | 2 . 1 3 3 1 . . 13 Energy Gun 9 | 2 . . 1 2 . . . 4 Energy Cannon 5 | . . . 1 . 1 . . 3 Ballistic Gun 2 | . . 1 . . . . . 1 Ballistic Cannon 4 | . . . 1 . . . . 3 Launcher 3 | . . . . 1 . . . 2 Special Weapon . | . . . . . . . . . Impact Weapon . | . . . . . . . . . Slashing Weapon . | . . . . . . . . . Piercing Weapon . | . . . . . . . . . Special Melee Weapon . | . . . . . . . . . Unidentified Prototypes 7 | . . . 1 . 2 . . 4 Parts Lost 15 | . . . 1 . . . . 14 Power 1 | . . . . . . . . 1 Propulsion 5 | . . . 1 . . . . 4 Utility 5 | . . . . . . . . 5 Weapon 4 | . . . . . . . . 4 Highest Loss Streak 13 | . . . 1 . . . . 13 Average Slot Usage (%) 94 | . 98 96 98 100 92 88 84 93 Engine 10 | . 14 14 11 11 11 11 9 8 Treads 2 | . . . . . . . . 7 Wheel 16 | . 28 28 20 22 22 22 18 9 Device 17 | . . 10 14 11 10 11 18 25 Storage 11 | . 26 15 11 11 11 11 9 9 Processor 8 | . . . 11 11 11 11 9 9 Hackware 5 | . . . 6 11 11 11 9 . Protection 3 | . . . . . . . 3 8 Energy Gun 9 | . 28 15 4 22 9 . . 5 Energy Cannon 3 | . . . 6 . 6 11 9 2 Ballistic Gun 3 | . . 10 4 . . . . 5 Ballistic Cannon 1 | . . . 7 . . . . 1 Naked Turns . | . . . . . . . . . Heaviest Build 48 | 12 16 16 20 20 36 36 44 48 Greatest Support 40 | 20 20 20 26 26 26 26 22 40 Greatest Overweight (x) 7 | 1 . . 1 . 1 1 1 7 Average Overweight (x) . | . . . . . . 1 1 . Largest Inventory Capacity 8 | 6 6 6 6 8 8 8 8 8 Average Capacity 7 | 5 6 6 6 7 8 8 8 8 Most Carried 8 | 2 5 6 6 8 8 8 8 8 Average Carried 7 | . 4 5 5 6 7 8 7 7 Final Capacity 8 | 6 6 6 6 8 8 8 8 8 Final Carried 8 | 2 5 6 6 8 8 8 8 6 Class Distribution -------------------- 54% | Scavenger-Mutant 45% | Mutant Dominant Class ---------------- Mutant | -10/Materials Mutant | -10/Mines Mutant | -9/Materials Scavenger-Mutant | -9/Mines Scavenger-Mutant | -9/Exiles Scavenger-Mutant | -8/Mines Scavenger-Mutant | -8/Materials Mutant | -8/Storage Resources | -11 -10 -10 -9 -9 -9 -8 -8 -8 ----------- Run | Scr Mat Min Mat Min Exi Min Mat Sto Matter Collected 1136 | 258 . . 320 72 . 31 59 396 Remotely . | . . . . . . . . . Salvage Created 1641 | . . . 529 74 . 68 446 524 Parts 99 | . . . 27 9 . 9 21 33 Haulers Intercepted 5 | . . . 2 . . . . 3 Recyclers Shooed 2 | . . . . . . . 1 1 Parts Field Recycled . | . . . . . . . . . Retrieved Matter . | . . . . . . . . . Parts Self-Destructed . | . . . . . . . . . Prevented . | . . . . . . . . . Kills | -11 -10 -10 -9 -9 -9 -8 -8 -8 ------- Run | Scr Mat Min Mat Min Exi Min Mat Sto Combat Hostiles Destroyed 34 | . . . 9 5 . 4 8 8 Guns 8 | . . . 2 1 . . . 5 Cannons 10 | . . . 7 . . . 1 2 AOE 15 | . . . . 4 . 4 6 1 Classes Destroyed 12 | . . . 7 . . . 4 1 Worker 1 | . . . . . . . 1 . Builder 4 | . . . 1 . . . 3 . Tunneler 1 | . . . 1 . . . . . Hauler 5 | . . . 2 . . . . 3 Recycler 2 | . . . 1 . . . . 1 Operator 2 | . . . 2 . . . . . Watcher 2 | . . . . . . . . 2 Swarmer 16 | . . . 2 4 . 4 3 3 Grunt 15 | . . . 7 1 . . 3 4 Brawler 1 | . . . . . . . 1 . Duelist 2 | . . . . . . . 1 1 Hunter 1 | . . . . . . . 1 . Best Kill Streak 11 | . . . 4 4 . 4 11 6 Combat Bots Only 7 | . . . 3 4 . 4 7 4 Max Kills in Single Turn 4 | . . . 2 3 . 4 3 2 Gunslinging . | . . . . . . . . . Exploded 4 | . . . . 2 . 4 1 1 Melee . | . . . . . . . . . Uniques/NPCs Destroyed . | . . . . . . . . . Combat | -11 -10 -10 -9 -9 -9 -8 -8 -8 -------- Run | Scr Mat Min Mat Min Exi Min Mat Sto Damage Taken 2769 | . . 68 303 100 . . 157 2141 Core 629 | . . . 60 13 . . 30 526 Absorbed by Shields . | . . . . . . . . . Core Remaining (%) 93 | 100 . 100 . . . 81 . . Volleys Fired 117 | . 15 . 40 7 . 1 12 42 Largest 2 | . 2 . 2 2 . 1 1 2 Hottest 250 | . 90 . 114 101 . 250 250 95 Shots Fired 215 | . 30 . 80 12 . 1 12 80 Gun 134 | . 30 . 28 10 . . . 66 Cannon 78 | . . . 52 . . 1 12 13 Launcher 3 | . . . . 2 . . . 1 Special . | . . . . . . . . . Kinetic 83 | . . . 42 . . . . 41 Thermal 124 | . 30 . 38 5 . 1 12 38 Explosive 2 | . . . . 2 . . . . Electromagnetic 6 | . . . . 5 . . . 1 Robot Hit Streak 18 | . 3 . 8 3 . . 10 18 Robot Miss Streak 10 | . 10 . 4 2 . 4 7 4 Penetration Max . | . . . . . . . . . Secondary Targets 2 | . . . . . . . . 2 Max Gunslinging Chain 1 | . . . . . . . . 1 Shots Hit Robots 117 | . 8 . 38 10 . . 9 52 Core Hits 81 | . 1 . 17 6 . 4 28 25 Critical Hits 3 | . . . 3 . . . . . Critical Kills 2 | . . . 2 . . . . . Critical Parts Destroyed 1 | . . . 1 . . . . . Melee Attacks . | . . . . . . . . . Impact . | . . . . . . . . . Slashing . | . . . . . . . . . Piercing . | . . . . . . . . . Sneak Attacks . | . . . . . . . . . Combat Hostiles . | . . . . . . . . . Follow-up Attacks . | . . . . . . . . . Damage Inflicted 3542 | . 95 . 848 253 . 97 970 1279 Guns 1111 | . 95 . 74 54 . . . 888 Cannons 1044 | . . . 774 . . 22 170 78 Explosions 1385 | . . . . 199 . 75 800 311 Melee . | . . . . . . . . . Ramming 2 | . . . . . . . . 2 Kinetic 683 | . . . 261 . . . . 422 Thermal 2441 | . 95 . 587 148 . 97 970 544 Explosive 206 | . . . . 67 . . . 139 Electromagnetic 210 | . . . . 38 . . . 172 Impact . | . . . . . . . . . Slashing . | . . . . . . . . . Piercing . | . . . . . . . . . Highest Corruption . | . . . . . . . . . Average Corruption . | . . . . . . . . . Corruption Purged . | . . . . . . . . . Overload Shots . | . . . . . . . . . Overflow Damage 39 | . . . 16 . . . 23 . Projectiles 16 | . . . 16 . . . . . Explosions 23 | . . . . . . . 23 . Melee . | . . . . . . . . . Knockbacks 4 | . . . 1 . . . . 3 Impact . | . . . . . . . . . Kinetic 3 | . . . 1 . . . . 2 Secondary 1 | . . . . . . . . 1 Self-Inflicted Damage 53 | . . . . 25 . . 27 1 Shots 4 | . . . . 1 . . 3 . Rammed 1 | . . . . . . . . 1 Targets Rammed 1 | . . . . . . . . 1 Kicked . | . . . . . . . . . Crushed . | . . . . . . . . . Highest Temperature 341 | . 170 . 81 8 . 176 341 . Average Temperature 69 | . 66 . 18 6 . 99 142 . Received Heat Transfer 1092 | . . . 84 18 . . . 990 Effects 1 | . . . . . . . 1 . Interference 1 | . . . . . . . 1 . Siege Activations . | . . . . . . . . . Robots Corrupted . | . . . . . . . . . Combat Hostiles . | . . . . . . . . . Parts Fried . | . . . . . . . . . Impact Corruptions . | . . . . . . . . . Robots Melted 1 | . . . . . . . 1 . Combat Hostiles 1 | . . . . . . . 1 . Parts Melted 17 | . . . . . . 2 14 1 Heat Transferred 8446 | . 248 . 925 187 . 400 5650 1036 Parts Sabotaged . | . . . . . . . . . Parts Stolen . | . . . . . . . . . Parts Stripped . | . . . . . . . . . Power Chain Reactions 2 | . . . . 2 . . . . Missiles Intercepted . | . . . . . . . . . Alert | -11 -10 -10 -9 -9 -9 -8 -8 -8 ------- Run | Scr Mat Min Mat Min Exi Min Mat Sto Peak Influence 574 | . 9 3 299 264 . 109 574 346 Average Influence 161 | . 5 3 140 208 . 109 205 191 Maximum Alert Level 2 | . . . 1 1 . . 2 1 Low Security (%) 56 | 100 100 100 61 12 . 100 71 50 Level 1 41 | . . . 38 87 . . 8 49 Level 2 1 | . . . . . . . 19 . Level 3 . | . . . . . . . . . Level 4 . | . . . . . . . . . Level 5 . | . . . . . . . . . High Security . | . . . . . . . . . Max Security . | . . . . . . . . . Squads Dispatched 7 | . . . 3 . . . 1 3 Investigation 1 | . . . 1 . . . . . Extermination . | . . . . . . . . . Reinforcement 4 | . . . 2 . . . 1 1 Assault 2 | . . . . . . . . 2 Garrison . | . . . . . . . . . Intercept . | . . . . . . . . . Construction Impeded 1 | . . . . . . . 1 . Haulers Reinforced . | . . . . . . . . . Stealth | -11 -10 -10 -9 -9 -9 -8 -8 -8 --------- Run | Scr Mat Min Mat Min Exi Min Mat Sto Distress Signals 5 | . . . 2 . . . 1 2 Communications Jammed . | . . . . . . . . . Distress Signals . | . . . . . . . . . Times Spotted 81 | . 3 . 18 6 . . 14 40 Peak Tracking Total 8 | . 2 . 4 4 . . 5 8 Tactical Retreats 2 | . . . . . . . . 2 Traps | -11 -10 -10 -9 -9 -9 -8 -8 -8 ------- Run | Scr Mat Min Mat Min Exi Min Mat Sto Traps Triggered 5 | . . 1 . . . . . 4 Indirectly . | . . . . . . . . . Trap Hack Attempts . | . . . . . . . . . Triggered . | . . . . . . . . . Disarmed . | . . . . . . . . . Reprogrammed . | . . . . . . . . . Reused . | . . . . . . . . . Traps Extracted . | . . . . . . . . . Installed . | . . . . . . . . . Triggered . | . . . . . . . . . Machines | -11 -10 -10 -9 -9 -9 -8 -8 -8 ---------- Run | Scr Mat Min Mat Min Exi Min Mat Sto Machines Disabled 12 | . . . 1 . . . 6 5 Max in Single Turn 2 | . . . 1 . . . 2 1 Machines Sabotaged . | . . . . . . . . . Garrisons Compromised . | . . . . . . . . . Overloaded Fab Kills . | . . . . . . . . . Fab Network Shutdowns . | . . . . . . . . . Hacking | -11 -10 -10 -9 -9 -9 -8 -8 -8 --------- Run | Scr Mat Min Mat Min Exi Min Mat Sto Machines Accessed 19 | . 2 1 3 . 4 . 1 8 Terminals 14 | . 2 . 3 . . . 1 8 Fabricators . | . . . . . . . . . Repair Stations . | . . . . . . . . . Recycling Units . | . . . . . . . . . Scanalyzers . | . . . . . . . . . Garrison Access . | . . . . . . . . . Total Hacks 86 | . 4 1 6 . 48 . 8 19 Successful 68 | . 3 1 1 . 48 . 6 9 Failed 18 | . 1 . 5 . . . 2 10 Catastrophic 2 | . . . . . . . . 2 Database Lockouts . | . . . . . . . . . Manual 24 | . 3 . 2 . 1 . 6 12 Terminals 37 | . 4 . 6 . . . 8 19 Fabricators . | . . . . . . . . . Repair Stations . | . . . . . . . . . Recycling Units . | . . . . . . . . . Scanalyzers . | . . . . . . . . . Garrison Access . | . . . . . . . . . Terminal Hacks 59 | . 2 1 1 . 48 . 3 4 Record 48 | . . . . . 48 . . . Part Schematic 1 | . 1 . . . . . . . Prototype ID Bank 1 | . 1 . . . . . . . Open Door 2 | . . 1 . . . . . 1 Terminal Index 2 | . . . 1 . . . 1 . Unreport Threat 2 | . . . . . . . 1 1 Locate Traps 1 | . . . . . . . . 1 Zone Layout 2 | . . . . . . . 1 1 Fabricator Hacks . | . . . . . . . . . Repair Station Hacks . | . . . . . . . . . Recycling Unit Hacks . | . . . . . . . . . Scanalyzer . | . . . . . . . . . Garrison Access Hacks . | . . . . . . . . . Unauthorized Hacks 25 | . 3 . 2 . . . 7 13 Terminals 9 | . 1 . . . . . 3 5 Track 2 | . . . . . . . 1 1 Assimilate 1 | . . . . . . . . 1 Botnet 4 | . 1 . . . . . 1 2 Detonate 1 | . . . . . . . . 1 Operators 1 | . . . . . . . 1 . Fabricators . | . . . . . . . . . Repair Stations . | . . . . . . . . . Recycling Units . | . . . . . . . . . Scanalyzers . | . . . . . . . . . Garrison Access . | . . . . . . . . . Data Cores Recovered 1 | . . . . . . . . 1 Used . | . . . . . . . . . Hacking Detections 13 | . 2 . 3 . . . 1 7 Full Trace Events 2 | . . . 1 . . . . 1 Feedback Events . | . . . . . . . . . Feedback Blocked . | . . . . . . . . . Robot Schematics Acquired . | . . . . . . . . . Robots Built . | . . . . . . . . . Matter . | . . . . . . . . . Time . | . . . . . . . . . Total Robot Build Rating . | . . . . . . . . . Part Schematics Acquired 1 | . 1 . . . . . . . Parts Built . | . . . . . . . . . Matter . | . . . . . . . . . Time . | . . . . . . . . . Total Part Build Rating . | . . . . . . . . . Parts Repaired . | . . . . . . . . . Time . | . . . . . . . . . Parts Recycled . | . . . . . . . . . Recycled Matter . | . . . . . . . . . Retrieved Matter . | . . . . . . . . . Retrieved Components . | . . . . . . . . . Parts Scanalyzed . | . . . . . . . . . Part Schematics Acquired . | . . . . . . . . . Parts Damaged . | . . . . . . . . . Bothacking | -11 -10 -10 -9 -9 -9 -8 -8 -8 ------------ Run | Scr Mat Min Mat Min Exi Min Mat Sto Used RIF Installer . | . . . . . . . . . Robots Hacked . | . . . . . . . . . Non-combat . | . . . . . . . . . Combat . | . . . . . . . . . Robot Hacks Applied . | . . . . . . . . . Relay Couplers Released . | . . . . . . . . . Robots Rewired . | . . . . . . . . . Allies Hacked . | . . . . . . . . . Hacks Repelled . | . . . . . . . . . Allies | -11 -10 -10 -9 -9 -9 -8 -8 -8 -------- Run | Scr Mat Min Mat Min Exi Min Mat Sto Total Allies 5 | . . . . 3 . . . 2 Largest Group 3 | . . . . 3 3 3 3 2 Highest-Rated Group 62 | . . . . 40 40 40 40 62 Highest-Rated Ally 31 | . . . . 16 16 16 16 31 Total Orders . | . . . . . . . . . Ally Attacks 74 | . . . . 5 . . 28 41 Total Damage 1055 | . . . . 66 . . 323 666 Kills 17 | . . . . 1 . . 7 9 Allies Corrupted . | . . . . . . . . . Allies Melted . | . . . . . . . . . Intel | -11 -10 -10 -9 -9 -9 -8 -8 -8 ------- Run | Scr Mat Min Mat Min Exi Min Mat Sto Robot Analysis Total . | . . . . . . . . . Derelict Logs Recovered . | . . . . . . . . . Drone Launches . | . . . . . . . . . Drone Recoveries . | . . . . . . . . . Exploration | -11 -10 -10 -9 -9 -9 -8 -8 -8 ------------- Run | Scr Mat Min Mat Min Exi Min Mat Sto Turns Passed 2739 | 39 179 76 361 339 326 94 208 1117 Spaces Moved 2103 | 36 157 81 240 322 324 85 174 684 Core 19 | 3 . . . . . . . 16 Treads 210 | . . . . . . . . 210 Legs 15 | . . . . . . . . 15 Wheels 1859 | 33 157 81 240 322 324 85 174 443 Hover . | . . . . . . . . . Flight . | . . . . . . . . . Fastest Speed 50 | 50 80 80 80 90 90 95 95 95 Average Speed 99 | 78 80 80 87 90 95 96 95 120 Slowest Speed 400 | 90 80 80 100 90 110 100 95 400 Overloaded Moves . | . . . . . . . . . Propulsion Burnouts . | . . . . . . . . . Robots Hopped . | . . . . . . . . . Cave-ins Triggered . | . . . . . . . . . Exploration Rate (%) 37 | 3 35 17 25 75 72 20 18 70 Regions Visited 8 Branch Regions 5 Pre-discovered Areas 2 | . . 1 . . 1 . . . Known Exits Taken . | . . . . . . . . . Unknown Exits Taken 8 | 1 1 1 1 1 1 1 1 . Scrap Searched 2 | . . . . 1 . 1 . . Spaces Dug . | . . . . . . . . . Terrain Destroyed 171 | . . . 3 31 . 10 116 11 Melee . | . . . . . . . . . Projectile 9 | . . . 3 . . . 5 1 AOE 162 | . . . . 31 . 10 111 10 Actions | -11 -10 -10 -9 -9 -9 -8 -8 -8 --------- Run | Scr Mat Min Mat Min Exi Min Mat Sto Total 2537 | 43 179 93 312 358 342 97 204 909 Wait 167 | . 4 1 4 21 5 10 12 110 Move 2095 | 35 156 80 239 321 323 84 173 684 Hop . | . . . . . . . . . Pick Up 34 | 2 3 4 6 2 2 . 2 13 Fast Attach 31 | 6 1 1 3 . 3 . 1 16 Attach 16 | . . 1 2 . 1 . 1 11 Detach 6 | . . 1 . . . . . 5 Swap 21 | . . 1 8 5 1 1 1 4 Drop 49 | . . 4 10 2 7 1 2 23 Fire 117 | . 15 . 40 7 . 1 12 42 Melee . | . . . . . . . . . Ram 1 | . . . . . . . . 1 Kick . | . . . . . . . . . Crush . | . . . . . . . . . Escape Stasis . | . . . . . . . . . Rewire . | . . . . . . . . . Trap . | . . . . . . . . . Miscellaneous . | . . . . . . . . . Route ------- -11/Scrapyard -10/Materials -10/Mines -9/Materials -9/Mines (discovered 3 exits: *Mat x2 / *Exi) -9/Exiles (discovered 2 exits: [*Min x2]) -8/Mines -8/Materials -8/Storage History --------- Turn | Location | Event 23 | -11/Scrapyard | Discovered new exit (range 15) 40 | -11/Scrapyard | Entered Materials 165 | -10/Materials | Discovered new exit (range 6) 219 | -10/Materials | Entered Mines 226 | -10/Mines | Met a Derelict who couldn't figure out how to use a Trap Extractor 243 | -10/Mines | Met a Derelict bent on vengeance 289 | -10/Mines | Discovered new exit (range 7) 290 | -10/Mines | Learned location of Storage (-8) 295 | -10/Mines | Entered Materials 295 | -9/Materials | Evolved 2 slots: Utility x2 339 | -9/Materials | Build established: Mutant 537 | -9/Materials | Discovered new exit (range 16) 656 | -9/Materials | Entered Mines 699 | -9/Mines | Discovered new exit (range 7) 843 | -9/Mines | Build established: Scavenger-Mutant 859 | -9/Mines | Discovered new exit (range 5) 867 | -9/Mines | Assisted by bots powering up and referring to "LRC-V3" 900 | -9/Mines | Received a Rocket Launcher from a helpful Derelict 984 | -9/Mines | Deemed a non-threat by the Exiles lab entrance 985 | -9/Mines | Discovered new exit (range 5) 995 | -9/Mines | Entered Exiles 995 | -9/Exiles | Accompanied by 3 allies 1007 | -9/Exiles | Discovered new exit (range 15) 1017 | -9/Exiles | Met 8R-AWN 1032 | -9/Exiles | Met EX-HEX 1071 | -9/Exiles | Met EX-BIN 1082 | -9/Exiles | Aligned with FarCom system 1083 | -9/Exiles | Given EX-Vault access code 1119 | -9/Exiles | Opened EX-Vault 1124 | -9/Exiles | Found Prototype Device 1124 | -9/Exiles | Identified PSU Rigger 1134 | -9/Exiles | Found Prototype Energy Cannon 1134 | -9/Exiles | Identified Firepult 1166 | -9/Exiles | Warned to stay clear of 0b10 Research branches 1196 | -9/Exiles | Met EX-DEC 1200 | -9/Exiles | Learned location of Zion (-6) 1304 | -9/Exiles | Discovered new exit (range 10) 1321 | -9/Exiles | Left Exiles lab with Firepult 1321 | -9/Exiles | Entered Mines 1321 | -8/Mines | Accompanied by 3 allies 1401 | -8/Mines | Discovered new exit (range 4) 1415 | -8/Mines | Entered Materials 1415 | -8/Materials | Accompanied by 3 allies 1415 | -8/Materials | Evolved 2 slots: Utility x2 1600 | -8/Materials | Discovered new exit (range 14) 1606 | -8/Materials | Destroyed 7 combat bots 1623 | -8/Materials | Entered Storage 1623 | -8/Storage | Accompanied by 2 allies 2517 | -8/Storage | Build established: Mutant 2577 | -8/Storage | Met a pair of Derelict thieves 2677 | -8/Storage | Core integrity fell below 50% 2735 | -8/Storage | Core integrity fell below 20% 2740 | -8/Storage | Destroyed by G-47 Trooper with Particle Gun Last Messages --------------- 02688_ K-01 Serf collects debris. 02690_ U-05 Engineer lays Concrete. 02694_ Cryofiber Web destroyed. 02702_ Cld. Ion Engine destroyed. 02707_ Aluminum Leg destroyed. 02709_ Enh. Autogun destroyed. 02709_ G-47 Trooper destroyed. 02710_ Terminal disabled. 02715_ R-06 Scavenger collects Imp. Heat Sink. 02718_ R-06 Scavenger collects Lgt. Nuclear Core. 02719_ Adv. EMP Blaster destroyed. 02720_ G-50 Soldier destroyed. 02722_ R-06 Scavenger collects Particle Gun. 02722_ Imp. Heat Sink destroyed. 02722_ U-05 Engineer lays Concrete. 02724_ ALERT: Hostiles spotted, dispatching reinforcements to Terminal S016. 02726_ R-06 Scavenger collects Aluminum Leg. 02726_ K-01 Serf collects debris. 02738_ G-47 Trooper IFF system glitched. Map ----- +----------------------------------------------------+ | ??????????????????????????????# | | ??????????????????????????????? | | ??????????? ????????????????? | | ??????????# #???????????????? | | ??????????+ #???????????????? | | ??????????# #???????????????? | | ??????????# #???????????????? | | ??????????# #???????????????? | | ??????????#^ ^#???????????????? | | ?????#+???# ##???????#??????? | | ????## ???# ## ????? #??????? | | ???#"" #??# #? ??? #??????? | | ????"T #?## ##? ? ????????? | | ?????"o#?# g #### ###### #### | | ?????# #?# g m | | ?????# ### k %= | | ?????# g a m %! = | | ?????# gg# #########u###### | | ???### #######???????# #????? | | ???" + #?????######### ###### | | ???#T# #?????#![%!#%[#%% | | ?????# #?????#%[!!" %/% u | | ?????# #?????#[=!%=%!#= k | | ?????#l #?????#[%=["[[#####k## | | ?????# #?????#!]]%#T## % | | ?????#@ #?????#]%][###? = | | ?????# g #?????######??#u [* | | ?????# g#?????????????# "" %[ | | ?????# ""????????????? ? ? [ | | ?????# G"???????????????? | | ?????# "" #??????????????? | | ?????# ####??????????????? | | ?????# #??????????????????Y## | | ?????# k#??????????????????##? | | ?????? #????????????????????? | | ?????? #????????????????????? | | ?????? #????????????????????? | | ?????? #????????????????????? | | ?????? #????????????????????? | | ?????? #????????????????????? | | ?????? ?????????????????????? | | ??????????????????????????????? | | ??????????????????????????????? | | ??????????????????????????????? | | ??????????Y???????????????????? | | ??????????????????????????????? | | ??????????????????????????????? | | ??????????????????????????????? | | ??????????????????????????????? | | ??????????????????????????????? | +----------------------------------------------------+ Best States ------------- Heat Dissipation 64 Energy Generation 14 Energy Capacity 280 Matter Stores 300 Matter Capacity 500 Sight Range 16 Terrain Scan Density 10 Base Temperature (-) 100 Armor Coverage 225 Weapon Shielding 66 Evasion (%) 44 Targeting Accuracy 8 Recoil Reduction 2 Offensive Hacking 10 Item Schematics ----------------- Wheel | -10/Materials | Hacked Robot Schematics ------------------ None Fabricated ------------ Nothing Alien Tech Used ----------------- None Achievements -------------- None Challenges ------------ None Game ------ Seed FlakGravityShifter Manual? 0 Play Time 00:46:56 Cumulative 115.8 hours Start 2020.04.10 @ 18:47:42 End 2020.04.10 @ 19:37:03 Sessions 1 Manual Loads 0 Difficulty Rogue Special Mode None Game No. 57 Rogue 57 Adventurer 0 Explorer 0 Win Type - Total 4 Types 3/0/1/0/0/0/0 Lore% 59 Gallery% 70 Achievement% 51 Wizard Run 0 Options --------- ASCII 1 Keyboard 1 Movement Numpad Keybinds 0 Fullscreen 2 Font 18/SmallcapsGlow Map View 76x50 Tactical HUD 1 Map Filters NONE Filters NONE Steam 1 RUN: caaf2ccd-591e-459c-a8cc-6220975f1247